bitfinex/quotes_SOLUSD_20250508
["timestamp","ask_amount","ask_price","bid_price","bid_amount"]
[1746739791274,30.0,162.02,162.01,53.271069]
[1746739791500,30.0,162.02,161.99,6.17290853]
[1746739791797,30.0,162.02,162.01,53.271069]
[1746739792182,32.14,162.04,162.01,53.271069]
[1746739792382,32.14,162.04,162.03,53.271069]
[1746739792694,62.14,162.04,162.03,53.271069]
[1746739793193,62.14,162.04,162.0,6.17278118]
[1746739793393,62.14,162.04,162.03,53.271069]
[1746739793695,32.12,162.11,162.06,26.0]
[1746739793897,30.0,162.07,162.06,26.0]
[1746739794277,30.0,162.07,162.03,26.0]
[1746739794878,32.12,162.11,162.06,26.0]
[1746739795085,32.12,162.11,162.1,53.271069]
[1746739796391,18.79181043,162.1,162.01,6.17245849]
[1746739796593,18.79181043,162.1,162.04,26.0]
[1746739796901,18.79181043,162.1,162.07,53.271069]
[1746739797081,24.96093954,162.1,162.05,26.0]
[1746739797481,24.96093954,162.1,162.06,53.271069]
[1746739797999,78.23200854,162.1,162.05,53.271069]
[1746739798204,78.23200854,162.1,162.0,53.271069]
[1746739798205,72.06287943,162.08,161.97,6.0]
[1746739798406,72.06287943,162.08,162.03,53.271069]
[1746739798907,18.79181043,162.06,162.02,53.271069]
[1746739799273,18.79181043,162.06,162.03,53.271069]
[1746739799983,6.17017338,162.07,162.03,53.271069]
[1746739800600,0.14216157,162.07,162.03,53.271069]
[1746739800806,0.14216157,162.07,162.01,6.17237342]
[1746739801020,0.14216157,162.07,162.03,53.271069]
[1746739801203,0.14216157,162.07,161.97,6.0]
[1746739801382,0.14216157,162.05,162.02,53.271069]
[1746739801585,0.14216157,162.05,162.01,53.271069]
[1746739801807,18.64964886,162.04,162.01,53.271069]
[1746739802602,24.82120692,162.04,162.01,53.271069]
[1746739803102,18.64964886,162.04,162.02,53.271069]
[1746739803311,18.64964886,162.04,161.98,6.17358654]
[1746739803607,18.64964886,162.04,162.02,53.271069]
[1746739803996,26.0,162.03,161.98,6.17358654]
[1746739804308,26.0,162.03,161.97,6.0]
[1746739804309,32.06,162.02,161.97,12.17396984]
[1746739804504,32.06,162.02,162.0,53.271069]
[1746739804688,32.06,162.02,161.99,53.2695482]
[1746739804886,32.06,162.02,161.98,53.2695482]
[1746739805098,26.0,161.99,161.97,6.0]
[1746739805488,18.79181043,161.98,161.97,6.0]
[1746739806609,24.9654121,161.98,161.97,6.0]
[1746739806909,18.79181043,161.98,161.97,6.0]
[1746739807086,0.14216157,161.98,161.97,6.0]
[1746739807406,6.31576324,161.98,161.97,6.0]
[1746739807818,0.14216157,162.0,161.97,59.29901179]
[1746739808014,0.14216157,162.0,161.97,6.0]
[1746739808510,30.0,161.98,161.97,6.0]
[1746739809808,6.17330858,161.99,161.97,6.0]
[1746739810118,26.0,161.98,161.97,6.0]
[1746739810490,50.9654121,161.98,161.97,6.0]
[1746739810690,32.17360167,161.98,161.97,6.0]
[1746739810896,50.9654121,161.98,161.97,6.0]
[1746739811297,80.9654121,161.98,161.97,6.0]
[1746739811504,50.9654121,161.98,161.97,6.0]
[1746739813113,140.32293304,161.98,161.97,6.0]
[1746739813300,276.72293304,161.98,161.97,6.0]
[1746739813824,258.58055649,161.98,161.97,6.0]
[1746739814313,223.4231121,161.98,161.97,6.0]
[1746739814622,258.58055649,161.98,161.97,6.0]
[1746739814823,223.4231121,161.98,161.97,6.0]
[1746739815326,258.58055649,161.98,161.97,6.0]
[1746739815710,223.4231121,161.98,161.97,6.0]
[1746739816336,260.24015649,161.98,161.97,6.0]
[1746739817132,224.94055053,161.98,161.97,6.0]
[1746739817329,260.09799492,161.98,161.97,6.0]
[1746739817629,260.24015649,161.98,161.97,6.0]
[1746739818041,225.0827121,161.98,161.97,6.0]
[1746739818331,260.24015649,161.98,161.97,6.0]
[1746739818898,18.64964886,161.93,161.8,26.95061267]
[1746739819216,26.0,161.94,161.81,6.18008775]
[1746739819217,79.94925482,161.91,161.81,6.18008775]
[1746739819423,79.94925482,161.91,161.85,35.15744439]
[1746739819608,18.79181043,161.89,161.86,35.15744439]
[1746739820012,18.79181043,161.89,161.81,6.18008775]
[1746739820224,24.96917638,161.89,161.86,35.15744439]
[1746739820527,24.96917638,161.89,161.81,6.18003297]
[1746739820717,136.4,161.88,161.85,35.15744439]
[1746739821314,136.4,161.88,161.81,6.18003297]
[1746739821506,136.4,161.88,161.83,35.15744439]
[1746739821706,136.4,161.88,161.84,35.15744439]
[1746739822233,136.4,161.88,161.78,5.04443428]
[1746739822418,31.98,161.87,161.77,32.18161587]
[1746739823033,31.98,161.87,161.85,35.15744439]
[1746739823221,31.98,161.87,161.77,32.18161587]
[1746739823531,31.98,161.87,161.84,35.15744439]
[1746739824238,31.98,161.87,161.82,6.17957207]
[1746739824405,31.98,161.87,161.84,35.15744439]
[1746739824820,38.15797417,161.87,161.84,35.15744439]
[1746739825040,38.15797417,161.87,161.83,35.15744439]
[1746739825215,18.79181043,161.86,161.83,35.15744439]
[1746739825412,18.79181043,161.86,161.77,41.45403968]
[1746739825635,136.4,161.85,161.83,35.15744439]
[1746739825812,18.79181043,161.84,161.77,32.18123821]
[1746739826018,18.79181043,161.82,161.76,6.18196478]
[1746739826239,18.79181043,161.82,161.75,12.36131886]
[1746739826415,18.79181043,161.82,161.79,35.15744439]
[1746739826728,18.79181043,161.82,161.75,6.18231886]
[1746739826729,18.79181043,161.82,161.78,35.15744439]
[1746739826938,18.79181043,161.82,161.75,6.18231886]
[1746739827142,18.79181043,161.82,161.79,35.15744439]
[1746739827363,142.58008775,161.81,161.79,35.15744439]
[1746739827643,136.4,161.81,161.74,6.18276245]
[1746739828132,18.64964886,161.8,161.78,35.15744439]
[1746739828447,18.79181043,161.8,161.78,35.15744439]
[1746739828630,18.79181043,161.8,161.74,6.18276245]
[1746739828811,18.79181043,161.8,161.78,35.15744439]
[1746739829008,18.79181043,161.8,161.74,6.18276245]
[1746739829422,18.79181043,161.8,161.78,35.15744439]
[1746739829814,18.79181043,161.8,161.74,6.18276245]
[1746739830013,18.79181043,161.8,161.77,35.15744439]
[1746739830441,18.79181043,161.8,161.74,6.18276245]
[1746739830620,136.4,161.81,161.78,35.15744439]
[1746739831034,136.4,161.81,161.79,35.15744439]
[1746739832741,31.92,161.8,161.76,6.18196454]
[1746739833043,31.92,161.8,161.78,35.15744439]
[1746739834317,31.92,161.8,161.76,6.18163966]
[1746739834739,31.92,161.8,161.78,35.15744439]
[1746739835316,31.92,161.8,161.76,6.18163966]
[1746739835317,31.92,161.8,161.72,21.64192453]
[1746739835525,38.10047959,161.8,161.77,35.15744439]
[1746739835939,31.92,161.8,161.72,21.64234478]
[1746739836139,31.92,161.8,161.76,35.15744439]
[1746739836350,31.92,161.8,161.77,35.15744439]
[1746739836919,31.92,161.8,161.72,21.64234478]
[1746739837122,31.92,161.8,161.77,35.15744439]
[1746739838867,31.92,161.8,161.75,6.18218869]
[1746739838868,31.92,161.8,161.78,35.15744439]
[1746739839070,31.92,161.8,161.75,6.18218869]
[1746739839071,31.92,161.8,161.79,35.2109466]
[1746739839279,61.92,161.8,161.79,35.2109466]
[1746739839653,80.71181043,161.8,161.73,6.18314474]
[1746739840172,86.89228784,161.8,161.78,35.2109466]
[1746739841360,86.89228784,161.8,161.77,35.22007193]
[1746739841668,48.79181043,161.79,161.77,35.22007193]
[1746739842657,30.0,161.79,161.78,35.22007193]
[1746739843739,30.0,161.79,161.76,35.22007193]
[1746739843974,200.34,161.82,161.78,35.22007193]
[1746739844146,200.34,161.82,161.8,35.22007193]
[1746739844355,30.0,161.81,161.76,35.22007193]
[1746739844553,61.86,161.81,161.8,35.22007193]
[1746739845946,31.86,161.81,161.8,35.22007193]
[1746739846960,31.84,161.83,161.8,35.22007193]
[1746739847286,31.84,161.83,161.82,35.22007193]
[1746739847873,31.84,161.84,161.82,35.22007193]
[1746739848386,31.84,161.84,161.78,6.18121529]
[1746739848684,38.0189905,161.84,161.81,35.22007193]
[1746739848847,31.84,161.84,161.82,35.22007193]
[1746739849278,38.01920415,161.84,161.81,35.22007193]
[1746739849462,61.82,161.83,161.82,35.22007193]
[1746739850358,61.82,161.83,161.77,6.18161587]
[1746739850878,31.82,161.83,161.82,35.22007193]
[1746739852445,136.4,161.85,161.82,35.22007193]
[1746739852668,295.22,161.86,161.84,35.22007193]
[1746739852994,30.0,161.85,161.82,6.17965789]
[1746739853173,31.88,161.86,161.82,6.17965789]
[1746739854069,31.88,161.86,161.85,35.22007193]
[1746739854264,136.4,161.89,161.85,35.22007193]
[1746739854486,136.4,161.89,161.88,35.22007193]
[1746739854669,30.0,161.89,161.88,35.22007193]
[1746739855162,31.78,161.9,161.88,35.22007193]
[1746739855364,31.78,161.9,161.89,35.22007193]
[1746739855783,31.78,161.9,161.89,41.39710571]
[1746739856292,31.78,161.9,161.86,6.17817867]
[1746739856488,31.78,161.9,161.89,35.22007193]
[1746739857364,31.78,161.9,161.85,6.17845306]
[1746739857599,31.78,161.9,161.88,35.22007193]
[1746739858165,37.95673789,161.9,161.84,6.17882171]
[1746739858471,37.95673789,161.9,161.81,6.18008775]
[1746739858676,73.17680982,161.9,161.85,35.22007193]
[1746739859276,37.95673789,161.9,161.85,35.22007193]
[1746739859970,37.95673789,161.9,161.86,35.22007193]
[1746739860371,18.79181043,161.87,161.83,35.22007193]
[1746739860975,54.01188236,161.87,161.77,6.18161587]
[1746739861297,138.0292,161.86,161.77,6.18161587]
[1746739861493,50.65181043,161.85,161.77,6.18161587]
[1746739861683,6.17894216,161.84,161.82,35.22007193]
[1746739864494,6.17894216,161.84,161.77,6.18148176]
[1746739864894,6.17894216,161.84,161.82,35.22007193]
[1746739865498,6.17894216,161.84,161.81,35.22007193]
[1746739867408,6.17894216,161.84,161.76,35.22007193]
[1746739867409,31.86,161.85,161.83,35.22007193]
[1746739867727,31.86,161.85,161.84,35.22007193]
[1746739868821,31.86,161.85,161.81,26.0]
[1746739869418,31.86,161.85,161.84,35.22007193]
[1746739872717,31.86,161.85,161.8,6.18020939]
[1746739872921,31.86,161.85,161.84,35.22007193]
[1746739874531,31.66,161.87,161.84,35.22007193]
[1746739874686,31.66,161.87,161.85,35.22007193]
[1746739875022,31.66,161.87,161.78,32.18113696]
[1746739875023,18.64964886,161.86,161.78,32.18113696]
[1746739875237,0.14216157,161.85,161.82,35.22007193]
[1746739876208,0.14216157,161.85,161.76,41.4017825]
[1746739876508,0.14216157,161.85,161.83,35.22007193]
[1746739876708,6.32109072,161.85,161.78,6.18108062]
[1746739876921,6.32109072,161.85,161.82,35.22007193]
[1746739878124,24.86534886,161.86,161.79,6.18049643]
[1746739878125,6.2157,161.86,161.79,6.18049643]
[1746739878307,6.2157,161.86,161.84,35.22007193]
[1746739879126,12.39397158,161.86,161.84,35.22007193]
[1746739880011,6.2157,161.86,161.84,35.22007193]
[1746739880213,6.2157,161.86,161.77,15.4537005]
[1746739880214,168.06,161.87,161.85,35.22007193]
[1746739880537,168.06,161.87,161.86,35.22007193]
[1746739880710,136.4,161.87,161.86,35.22007193]
[1746739880916,167.94,161.87,161.86,35.22007193]
[1746739882208,136.4,161.91,161.86,35.22007193]
[1746739882408,31.54,161.92,161.9,35.22007193]
[1746739882605,6.17555956,161.93,161.9,35.22007193]
[1746739882829,31.52,161.92,161.91,35.22007193]
[1746739883209,31.52,161.94,161.91,35.22007193]
[1746739883409,31.52,161.94,161.92,35.22007193]
[1746739883819,31.52,161.94,161.91,35.22007193]
[1746739884136,31.52,161.94,161.92,35.22007193]
[1746739884432,199.54,161.95,161.93,35.22007193]
[1746739884632,63.14,161.95,161.94,35.22007193]
[1746739885115,231.52,161.96,161.89,26.66430645]
[1746739885318,31.5,162.0,161.95,41.39481722]
[1746739885518,31.5,162.0,161.99,35.22007193]
[1746739885727,31.62,162.04,161.99,35.22007193]
[1746739886017,63.12,162.04,162.03,35.22007193]
[1746739886630,31.5,162.04,162.03,35.22007193]
[1746739887023,231.46,162.07,162.03,35.22007193]
[1746739887338,37.64912224,162.1,162.06,35.22007193]
[1746739887631,37.64912224,162.1,162.02,26.0]
[1746739887632,136.4,162.09,162.02,26.0]
[1746739887840,18.64964886,162.08,162.05,35.22007193]
[1746739888136,136.4,162.09,162.06,35.22007193]
[1746739888538,18.64964886,162.08,161.99,32.17316392]
[1746739888742,155.04964886,162.08,162.05,35.22007193]
[1746739889120,155.04964886,162.08,162.04,35.22007193]
[1746739889322,6.17017338,162.07,162.0,35.22007193]
[1746739889521,21.59560683,162.07,162.03,35.22007193]
[1746739889830,142.56983806,162.08,162.05,35.22007193]
[1746739890514,142.56983806,162.08,162.06,35.22007193]
[1746739890717,142.56983806,162.08,162.05,35.22007193]
[1746739891326,142.56983806,162.08,162.03,35.22007193]
[1746739891635,18.79181043,162.07,162.04,35.22007193]
[1746739892024,142.56983806,162.08,162.05,35.22007193]
[1746739892744,136.4,162.08,162.02,6.17175083]
[1746739892917,136.4,162.08,162.06,35.22007193]
[1746739893421,167.8,162.08,162.07,35.22007193]
[1746739893617,31.4,162.08,162.07,35.22007193]
[1746739893830,136.4,162.12,162.07,35.22007193]
[1746739894038,31.4,162.1,162.09,35.22007193]
[1746739894236,31.4,162.1,162.03,26.0]
[1746739894547,167.78,162.12,162.09,35.22007193]
[1746739894720,167.78,162.12,162.1,35.22007193]
[1746739895039,167.78,162.12,162.07,6.17008623]
[1746739895040,31.62,162.13,162.11,35.22007193]
[1746739895235,63.0,162.13,162.12,35.22007193]
[1746739895420,31.62,162.13,162.12,35.22007193]
[1746739895621,1.0,162.14,162.12,61.22007193]
[1746739895829,31.38,162.2,162.13,35.22007193]
[1746739896026,31.38,162.2,162.19,35.22007193]
[1746739896437,31.6,162.22,162.19,35.22007193]
[1746739896745,69.1245224,162.22,162.14,26.0]
[1746739896948,62.96,162.22,162.21,35.22007193]
[1746739897526,62.96,162.22,162.13,26.0]
[1746739897736,62.96,162.22,162.21,35.22007193]
[1746739897955,69.124468,162.22,162.21,35.22007193]
[1746739898251,62.96,162.22,162.21,35.22007193]
[1746739899040,69.124468,162.22,162.21,35.22007193]
[1746739899243,62.96,162.22,162.16,41.3866296]
[1746739899537,62.92,162.22,162.21,35.22007193]
[1746739900546,231.28,162.27,162.21,35.22007193]
[1746739900843,49.94964886,162.26,162.2,26.0]
[1746739901344,49.94964886,162.26,162.23,35.22007193]
[1746739901723,49.94964886,162.26,162.21,26.0]
[1746739901925,49.94964886,162.26,162.24,35.22007193]
[1746739902138,49.94964886,162.26,162.21,26.0]
[1746739902139,18.64964886,162.3,162.25,35.22007193]
[1746739902321,0.14216157,162.29,162.27,35.22007193]
[1746739902515,31.28,162.31,162.28,35.22007193]
[1746739902922,31.28,162.31,162.29,35.22007193]
[1746739903243,31.28,162.31,162.21,41.41140385]
[1746739903425,18.64964886,162.34,162.3,35.22007193]
[1746739903620,31.26,162.33,162.32,35.22007193]
[1746739903820,31.28,162.35,162.32,35.22007193]
[1746739904049,62.54,162.35,162.34,35.22007193]
[1746739904949,31.26,162.35,162.34,35.22007193]
[1746739905242,1.0,162.36,162.34,35.22007193]
[1746739905243,1.0,162.36,162.34,41.37998322]
[1746739905453,1.0,162.36,162.35,35.22007193]
[1746739906829,1.0,162.36,162.35,67.3796038]
[1746739907147,31.26,162.36,162.2,15.41228721]
[1746739907330,0.14216157,162.34,162.24,35.22007193]
[1746739907535,18.79181043,162.31,162.28,35.22007193]
[1746739907724,0.14216157,162.31,162.29,35.22007193]
[1746739908047,18.64964886,162.32,162.29,35.22007193]
[1746739908248,18.64964886,162.32,162.24,35.22007193]
[1746739908249,31.2,162.33,162.31,35.22007193]
[1746739908450,31.2,162.33,162.24,35.22007193]
[1746739908451,18.64964886,162.32,162.29,35.22007193]
[1746739908649,6.16104984,162.31,162.29,35.22007193]
[1746739908830,6.16104984,162.31,162.24,61.22007193]
[1746739909031,6.16104984,162.31,162.29,35.22007193]
[1746739909229,31.2,162.33,162.3,35.22007193]
[1746739909440,31.2,162.33,162.26,26.0]
[1746739909641,31.2,162.33,162.32,35.22007193]
[1746739909848,31.2,162.33,162.31,35.22007193]
[1746739910039,31.18,162.34,162.31,35.22007193]
[1746739910236,31.18,162.34,162.24,35.22007193]
[1746739910454,31.18,162.34,162.31,35.22007193]
[1746739910658,31.18,162.34,162.3,35.22007193]
[1746739910962,37.33991895,162.34,162.27,26.0]
[1746739911463,18.64964886,162.33,162.28,35.22007193]
[1746739912261,18.64964886,162.33,162.24,35.22007193]
[1746739912262,60.03008066,162.33,162.21,6.16484803]
[1746739912435,35.3622335,162.32,162.26,35.22007193]
[1746739912850,18.64964886,162.3,162.26,35.22007193]
[1746739913051,0.14216157,162.32,162.26,35.22007193]
[1746739913250,35.22007193,162.31,162.26,35.22007193]
[1746739913453,24.81124032,162.3,162.25,35.22007193]
[1746739913747,60.03131225,162.3,162.23,26.0]
[1746739914262,18.64964886,162.27,162.23,61.22007193]
[1746739914445,49.78964886,162.27,162.23,26.0]
[1746739914645,49.78964886,162.27,162.21,35.22007193]
[1746739914646,0.14216157,162.26,162.21,35.22007193]
[1746739914857,18.64964886,162.25,162.21,35.22007193]
[1746739915158,54.01188236,162.26,162.15,6.1671292]
[1746739915476,18.64964886,162.24,162.17,6.16621124]
[1746739915980,18.64964886,162.24,162.17,32.16621124]
[1746739916149,31.38216157,162.26,162.2,35.22007193]
[1746739916517,18.64964886,162.25,162.17,32.16621124]
[1746739916855,18.64964886,162.25,162.21,35.22007193]
[1746739917069,18.64964886,162.25,162.17,32.16621124]
[1746739917383,18.64964886,162.25,162.21,35.22007193]
[1746739917573,31.24,162.26,162.18,6.1659884]
[1746739917752,31.24,162.26,162.24,35.22007193]
[1746739918077,31.24,162.26,162.25,35.22007193]
[1746739918256,31.24,162.26,162.21,26.0]
[1746739918762,31.24,162.26,162.25,35.22007193]
[1746739919149,31.24,162.26,162.24,35.22007193]
[1746739919582,31.24,162.26,162.25,41.38340012]
[1746739921091,18.64964886,162.31,162.25,41.38340012]
[1746739921269,18.64964886,162.31,162.27,35.22007193]
[1746739921586,31.08,162.3,162.27,41.38231724]
[1746739921884,31.08,162.3,162.27,6.16224531]
[1746739922463,31.08,162.3,162.27,41.38231724]
[1746739922660,93.14282079,162.32,162.28,35.22007193]
[1746739922661,56.27864886,162.32,162.28,35.22007193]
[1746739922863,26.0,162.28,162.21,15.41181928]
[1746739923067,26.0,162.28,162.24,35.22007193]
[1746739923858,26.0,162.28,162.23,41.38391151]
[1746739924582,18.64964886,162.27,162.22,41.38449109]
[1746739924993,18.64964886,162.27,162.23,35.22007193]
[1746739925366,31.06,162.27,162.24,35.22007193]
[1746739925562,31.06,162.27,162.22,6.16441916]
[1746739925563,31.06,162.27,162.25,6.16332819]
[1746739925864,31.04,162.29,162.26,35.22007193]
[1746739926687,31.04,162.29,162.26,41.38292045]
[1746739927281,31.04,162.29,162.25,35.22007193]
[1746739927480,31.04,162.29,162.26,35.22007193]
[1746739927776,31.04,162.29,162.25,35.22007193]
[1746739927982,18.64964886,162.28,162.24,35.22007193]
[1746739928359,31.04,162.29,162.25,35.22007193]
[1746739928583,31.04,162.29,162.23,6.16408802]
[1746739928584,31.02,162.28,162.26,35.22007193]
[1746739928787,31.02,162.28,162.26,41.38270352]
[1746739930277,31.02,162.28,162.25,6.16332719]
[1746739930476,49.64964886,162.29,162.24,6.16366755]
[1746739930674,49.64964886,162.29,162.24,41.38373948]
[1746739930861,35.22007193,162.28,162.21,6.16484803]
[1746739931263,35.22007193,162.28,162.23,35.22007193]
[1746739931468,49.64964886,162.29,162.24,35.22007193]
[1746739931669,49.64964886,162.29,162.25,35.22007193]
[1746739931993,49.64964886,162.29,162.24,41.38344271]
[1746739932291,49.64964886,162.29,162.25,35.22007193]
[1746739933191,49.64964886,162.29,162.23,6.16401059]
[1746739933192,55.81151822,162.29,162.23,6.16401059]
[1746739933489,49.64964886,162.29,162.23,6.16401059]
[1746739933793,55.81149559,162.29,162.24,35.22007193]
[1746739934090,49.64964886,162.29,162.21,6.16484803]
[1746739934289,49.64964886,162.29,162.24,35.22007193]
[1746739934790,49.64964886,162.29,162.25,35.22007193]
[1746739935195,31.0,162.29,162.26,35.22007193]
[1746739935377,57.0,162.29,162.21,6.16484803]
[1746739935580,57.0,162.29,162.24,35.22007193]
[1746739936185,57.0,162.29,162.25,35.22007193]
[1746739936889,31.0,162.29,162.25,35.22007193]
[1746739937488,31.0,162.29,162.21,6.16484803]
[1746739937693,18.64964886,162.28,162.23,35.22007193]
[1746739937868,24.81189499,162.28,162.17,15.41528541]
[1746739938069,18.64964886,162.26,162.21,35.22007193]
[1746739939190,6.16332819,162.25,162.16,35.22007193]
[1746739939389,18.64964886,162.24,162.21,35.22007193]
[1746739939691,18.64964886,162.24,162.2,35.22007193]
[1746739940272,18.64964886,162.24,162.16,41.38682081]
[1746739940273,53.86972079,162.24,162.19,35.22007193]
[1746739940801,0.14216157,162.23,162.19,35.22007193]
[1746739941284,18.64964886,162.22,162.19,35.22007193]
[1746739942692,18.64964886,162.2,162.12,6.16827041]
[1746739942871,30.9,162.19,162.15,35.22007193]
[1746739943271,18.64964886,162.18,162.15,35.22007193]
[1746739944703,18.64964886,162.18,162.13,6.1678254]
[1746739944887,18.64964886,162.18,162.15,35.22007193]
[1746739945084,18.64964886,162.18,162.13,6.1678254]
[1746739945276,26.0,162.15,162.07,1.5441]
[1746739945600,26.0,162.15,162.1,35.22007193]
[1746739945984,61.22007193,162.15,162.08,6.16979269]
[1746739946184,61.22007193,162.15,162.1,35.22007193]
[1746739946529,61.22007193,162.15,162.08,6.16979269]
[1746739946530,20.29204886,162.18,162.12,35.22007193]
[1746739946679,20.29204886,162.18,162.14,35.22007193]
[1746739947000,20.29204886,162.18,162.13,35.22007193]
[1746739947515,55.51212079,162.18,162.13,35.22007193]
[1746739947801,55.51212079,162.18,162.12,35.22007193]
[1746739948105,20.29204886,162.18,162.12,35.22007193]
[1746739948291,26.0,162.17,162.12,35.22007193]
[1746739948498,61.22007193,162.17,162.11,6.16865091]
[1746739948697,61.22007193,162.17,162.12,35.22007193]
[1746739949496,54.01188236,162.16,162.1,35.22007193]
[1746739950498,18.79181043,162.16,162.1,41.38875371]
[1746739950703,54.01188236,162.16,162.11,35.22007193]
[1746739950906,60.17868277,162.16,162.1,41.38875371]
[1746739951097,35.3622335,162.16,162.1,41.38875371]
[1746739951301,35.22007193,162.15,162.1,41.38875371]
[1746739951815,35.22007193,162.15,162.1,6.16868178]
[1746739952214,31.14216157,162.14,162.06,6.17055411]
[1746739952402,0.14216157,162.12,162.07,35.22007193]
[1746739952597,0.14216157,162.12,162.07,6.17008041]
[1746739952799,0.14216157,162.12,162.07,41.39015234]
[1746739952998,0.14216157,162.12,162.07,6.17008041]
[1746739953697,0.14216157,162.12,162.05,6.17093489]
[1746739953892,0.14216157,162.12,162.08,35.22007193]
[1746739954116,35.3622335,162.1,162.0,6.0104]
[1746739954338,162.4,162.11,161.93,6.17550793]
[1746739954339,35.22007193,162.06,161.93,6.17550793]
[1746739954498,53.86972079,162.03,161.93,21.61427776]
[1746739954821,0.14216157,162.02,161.97,35.22007193]
[1746739954995,54.01188236,162.02,161.93,6.17550793]
[1746739955313,35.22007193,162.01,161.96,35.22007193]
[1746739955500,30.78,162.0,161.93,6.17550793]
[1746739955712,30.78,162.0,161.96,35.22007193]
[1746739956018,30.78,162.0,161.93,6.17550793]
[1746739956318,0.14216157,161.99,161.93,6.17550793]
[1746739956498,30.78,162.0,161.93,6.17550793]
[1746739956698,30.78,162.0,161.97,35.22007193]
[1746739957496,30.78,162.0,161.96,35.22007193]
[1746739957919,30.78,162.0,161.95,6.17459275]
[1746739958104,30.78,162.0,161.96,35.22007193]
[1746739958302,36.95286055,162.0,161.95,35.22007193]
[1746739958618,0.14216157,161.99,161.94,35.22007193]
[1746739958930,54.01188236,161.99,161.9,6.17665225]
[1746739959229,18.79181043,161.99,161.9,6.17665225]
[1746739959408,35.22007193,161.97,161.9,6.17665225]
[1746739959726,6.17474529,161.95,161.87,6.17779699]
[1746739959894,0.14216157,161.94,161.9,35.22007193]
[1746739960096,26.0,161.92,161.85,6.17822719]
[1746739960310,26.0,161.92,161.87,35.22007193]
[1746739960311,30.88216157,161.91,161.87,35.22007193]
[1746739960620,30.74,161.91,161.89,35.22007193]
[1746739960821,30.74,161.91,161.88,35.22007193]
[1746739961327,30.74,161.91,161.87,35.22007193]
[1746739961554,30.74,161.91,161.81,47.63030714]
[1746739961726,0.14216157,161.9,161.81,21.63030714]
[1746739962022,1.75536157,161.9,161.81,21.63030714]
[1746739962319,1.75536157,161.9,161.87,35.22007193]
[1746739962693,18.67170682,161.91,161.81,21.63030714]
[1746739962912,18.67170682,161.91,161.86,35.22007193]
[1746739963630,53.89177875,161.91,161.86,35.22007193]
[1746739963798,18.67170682,161.91,161.86,35.22007193]
[1746739964121,18.67170682,161.91,161.87,35.22007193]
[1746739964302,231.16,161.95,161.9,35.22007193]
[1746739964495,231.16,161.95,161.92,35.22007193]
[1746739964893,231.16,161.95,161.94,35.22007193]
[1746739965119,0.14216157,161.99,161.94,35.22007193]
[1746739965292,210.37952443,162.0,161.94,35.22007193]
[1746739965705,0.14216157,161.99,161.94,35.22007193]
[1746739965915,0.14216157,161.99,161.95,35.22007193]
[1746739966424,18.79181043,161.99,161.9,6.17665225]
[1746739966595,18.79181043,161.99,161.92,35.22007193]
[1746739966793,6.17360167,161.98,161.94,35.22007193]
[1746739967015,0.14216157,161.97,161.94,35.22007193]
[1746739967601,0.14216157,161.97,161.89,6.17703378]
[1746739967805,30.74,162.0,161.92,26.0]
[1746739967996,30.74,162.0,161.98,35.22007193]
[1746739968207,30.74,162.0,161.92,61.22007193]
[1746739968397,30.74,162.0,161.99,35.22007193]
[1746739968598,263.41098962,162.05,161.99,35.22007193]
[1746739968599,231.24,162.05,161.99,35.22007193]
[1746739968799,231.24,162.05,161.93,6.4448]
[1746739968800,231.24,162.05,162.03,41.39173924]
[1746739969013,231.24,162.05,162.04,35.22007193]
[1746739969700,61.42,162.07,162.04,35.22007193]
[1746739969905,61.42,162.07,162.06,35.22007193]
[1746739970115,30.74,162.07,162.06,35.22007193]
[1746739970621,30.66,162.13,162.06,35.22007193]
[1746739970928,30.74,162.14,162.12,35.22007193]
[1746739971107,30.74,162.14,162.13,35.22007193]
[1746739971310,60.74,162.14,162.13,35.22007193]
[1746739971623,30.74,162.21,162.13,70.44014386]
[1746739971813,30.74,162.21,162.2,53.13595126]
[1746739972628,30.74,162.21,162.12,1.6016]
[1746739973000,30.74,162.21,162.19,53.13595126]
[1746739973326,30.74,162.21,162.2,53.13595126]